fUSD/lending_fUSD_20250326
["ID","MTS","AMOUNT","RATE_DAILY","PERIOD"]
[356701650,1742989866157,-499.18166919,0.00041369,30]
[356701651,1742989866167,-157.68791187,0.00041369,30]
[356701652,1742989866177,-520.70895856,0.00041369,30]
[356701653,1742989866186,-545.88813459,0.00041369,30]
[356701654,1742989866195,-401.89138104,0.00041369,30]
[356701655,1742989866205,-526.29509889,0.00041369,30]
[356701656,1742989866215,-510.12810878,0.00041369,30]
[356701657,1742989866224,-530.66331949,0.00041369,30]
[356701658,1742989866234,-532.42035821,0.00041369,30]
[356701659,1742989866244,-293.49594579,0.00041369,30]
[356701660,1742989866253,-529.60817785,0.00041369,30]
[356701661,1742989866263,-562.82501223,0.00041369,30]
[356701662,1742989866272,-516.46793842,0.00041369,30]
[356701663,1742989866281,-500.0,0.00041369,30]
[356701664,1742989866291,-539.59177928,0.00041369,30]
[356701665,1742989866300,-523.27279348,0.00041369,30]
[356701666,1742989866310,-500.0,0.00041369,30]
[356701667,1742989866319,-500.0,0.00041369,30]
[356701668,1742989866329,-508.9018066,0.00041369,30]
[356701669,1742989866338,-500.0,0.00041369,2]
[356701670,1742989866348,-500.0,0.00041369,30]
[356701671,1742989866357,-527.43752006,0.00041369,30]
[356701672,1742989866366,-500.0,0.00041369,30]
[356701673,1742989866376,-500.0,0.00041369,30]
[356701674,1742989866386,-516.71817855,0.00041369,30]
[356701675,1742989866396,-537.65208727,0.00041369,30]
[356701676,1742989866406,-521.63146101,0.00041369,30]
[356701677,1742989866416,-618.95686394,0.00041369,30]
[356701678,1742989866426,-520.97869322,0.00041369,30]
[356701679,1742989866436,-500.0,0.00041369,30]
[356701680,1742989866445,-546.34976766,0.00041369,30]
[356701681,1742989866456,-556.2234677,0.00041369,30]
[356701682,1742989866465,-541.76296616,0.00041369,30]
[356701683,1742989866475,-620.74555939,0.00041369,30]
[356701684,1742989866485,-241.03105569,0.00041369,30]
[356701685,1742989866494,-500.0,0.00041369,30]
[356701686,1742989866504,-531.53180425,0.00041369,30]
[356701687,1742989866513,-516.74483996,0.00041369,30]
[356701688,1742989866523,-529.04486773,0.00041369,30]
[356701689,1742989866533,-517.16638111,0.00041369,30]
[356701690,1742989866543,-509.99591798,0.00041369,30]
[356701691,1742989866629,-509.70402578,0.00041369,30]
[356701692,1742989866639,-514.14746362,0.00041369,30]
[356701693,1742989866649,-567.70803689,0.00041369,30]
[356701694,1742989866658,-505.53471897,0.00041369,30]
[356701695,1742989866667,-533.14039129,0.00041369,30]
[356701696,1742989866676,-517.47391721,0.00041369,30]
[356701697,1742989866686,-556.33474664,0.00041369,30]
[356701698,1742989866695,-509.3534839,0.00041369,30]
[356701699,1742989866705,-387.40732733,0.00041369,30]
[356701700,1742989866714,-517.12876781,0.00041369,30]
[356701701,1742989866723,-500.0,0.00041369,30]
[356701702,1742989866733,-511.56877356,0.00041369,30]
[356701703,1742989866743,-500.0,0.00041369,30]
[356701704,1742989866753,-516.97218147,0.00041369,30]
[356701705,1742989866763,-500.0,0.00041369,30]
[356701706,1742989866772,-640.8075421,0.00041369,30]
[356701707,1742989866782,-355.97774577,0.00041369,30]
[356701708,1742989866791,-552.03574247,0.00041369,30]
[356701709,1742989866801,-532.88038421,0.00041369,30]
[356701710,1742989866810,-500.0,0.00041369,30]
[356701711,1742989866820,-500.0,0.00041369,30]
[356701712,1742989866829,-510.35694043,0.00041369,30]
[356701713,1742989866839,-500.0,0.00041369,30]
[356701714,1742989866850,-500.0,0.00041369,30]
[356701715,1742989866859,-536.43758442,0.00041369,30]
[356701716,1742989866869,-549.18194399,0.00041369,30]
[356701717,1742989866879,-515.86903509,0.00041369,30]
[356701718,1742989866889,-500.0,0.00041369,30]
[356701719,1742989866900,-150.51066445,0.00041369,30]
[356701720,1742989866910,-500.0,0.00041369,30]
[356701721,1742989866920,-500.0,0.00041369,30]
[356701722,1742989866930,-512.1530916,0.00041369,30]
[356701723,1742989866940,-533.66438419,0.00041369,30]
[356701724,1742989866950,-500.0,0.00041369,30]
[356701725,1742989866960,-518.27886207,0.00041369,30]
[356701726,1742989866971,-510.77106901,0.00041369,30]
[356701727,1742989866980,-520.38793627,0.00041369,30]
[356701728,1742989866990,-536.16850214,0.00041369,30]
[356701729,1742989867000,-520.82264275,0.00041369,30]
[356701730,1742989867009,-500.0,0.00041369,30]
[356701731,1742989867018,-520.06405946,0.00041369,30]
[356701732,1742989867028,-597.24235803,0.00041369,30]
[356701733,1742989867037,-525.31558054,0.00041369,30]
[356701734,1742989867047,-500.0,0.00041369,30]
[356701735,1742989867057,-525.72211133,0.00041369,30]
[356701736,1742989867068,-501.12663796,0.00041369,30]
[356701737,1742989867077,-500.0,0.00041369,30]
[356701738,1742989867088,-500.0,0.00041369,30]
[356701739,1742989867102,-529.99920775,0.00041369,30]
[356701740,1742989867111,-543.6640178,0.00041369,30]
[356701741,1742989867121,-518.87587172,0.00041369,30]
[356701742,1742989867130,-525.76486975,0.00041369,30]
[356701743,1742989867141,-504.07971594,0.00041369,30]
[356701744,1742989867151,-306.16825063,0.00041369,30]
[356701745,1742989867160,-500.0,0.00041369,30]
[356701746,1742989867169,-534.91190966,0.00041369,30]
[356701747,1742989867179,-507.5912052,0.00041369,30]
[356701748,1742989867188,-546.5715283,0.00041369,30]
[356701749,1742989867198,-500.0,0.00041369,30]
[356701750,1742989867207,-500.0,0.00041369,30]
[356701751,1742989867217,-558.82316659,0.00041369,30]
[356701752,1742989867227,-514.49704768,0.00041369,30]
[356701753,1742989867237,-500.0,0.00041369,30]
[356701754,1742989867247,-538.54028562,0.00041369,30]
[356701755,1742989867256,-524.9502143,0.00041369,30]
[356701756,1742989867266,-515.89281661,0.00041369,30]
[356701757,1742989867276,-500.0,0.00041369,30]
[356701758,1742989867286,-500.0,0.00041369,30]
[356701759,1742989867296,-519.04070606,0.00041369,30]
[356701760,1742989867305,-500.0,0.00041369,30]
[356701761,1742989867315,-537.80815055,0.00041369,30]
[356701762,1742989867325,-500.0,0.00041369,30]
[356701763,1742989867335,-546.08839776,0.00041369,30]
[356701764,1742989867344,-512.51048575,0.00041369,30]
[356701765,1742989867354,-524.15313806,0.00041369,30]
[356701766,1742989867364,-523.28274868,0.00041369,30]
[356701767,1742989867374,-500.0,0.00041369,30]
[356701768,1742989867384,-500.0,0.00041369,30]
[356701769,1742989867394,-500.0,0.00041369,30]
[356701770,1742989867403,-530.73761277,0.00041369,30]
[356701771,1742989867412,-514.93371855,0.00041369,30]
[356701772,1742989867421,-500.0,0.00041369,30]
[356701773,1742989867430,-513.95916734,0.00041369,30]
[356701774,1742989867440,-533.62262998,0.00041369,30]
[356701775,1742989867449,-500.0,0.00041369,30]
[356701776,1742989867459,-515.37372669,0.00041369,30]
[356701777,1742989867469,-522.80985451,0.00041369,30]
[356701778,1742989867484,-500.0,0.00041369,30]
[356701779,1742989867495,-519.57583675,0.00041369,30]
[356701780,1742989867505,-574.01103675,0.00041369,30]
[356701781,1742989867514,-500.0,0.00041369,30]
[356701782,1742989867523,-506.74068501,0.00041369,30]
[356701783,1742989867533,-620.34447457,0.00041369,30]
[356701784,1742989867542,-533.07110368,0.00041369,30]
[356701785,1742989867552,-517.64778934,0.00041369,30]
[356701786,1742989867561,-500.0,0.00041369,30]
[356701787,1742989867570,-539.71964562,0.00041369,30]
[356701788,1742989867579,-546.33579936,0.00041369,30]
[356701789,1742989867589,-510.92228911,0.00041369,30]
[356701790,1742989867598,-1234.37,0.00041369,30]
[356701791,1742989867607,-189.59878494,0.00041369,30]
[356701792,1742989867617,-562.62903159,0.00041369,30]
[356701793,1742989867627,-517.45024969,0.00041369,30]
[356701794,1742989867637,-586.13080574,0.00041369,30]
[356701795,1742989867647,-500.0,0.00041369,30]
[356701796,1742989867656,-779.98,0.00041369,30]
[356701797,1742989867665,-531.15526789,0.00041369,30]
[356701798,1742989867674,-520.00438513,0.00041369,30]
[356701799,1742989867683,-500.0,0.00041369,30]
[356701800,1742989867693,-522.94214539,0.00041369,30]
[356701801,1742989867702,-544.15427527,0.00041369,30]
[356701802,1742989867712,-530.25438561,0.00041369,30]
[356701803,1742989867721,-533.00262295,0.00041369,30]
[356701804,1742989867731,-500.0,0.00041369,30]
[356701805,1742989867810,-508.72358675,0.00041369,30]
[356701806,1742989867819,-7474.69,0.00041369,2]
[356701807,1742989867829,-524.61805557,0.00041369,30]
[356701808,1742989867840,-526.91,0.00041369,30]
[356701809,1742989867849,-500.0,0.00041369,30]
[356701810,1742989867859,-512.26842362,0.00041369,30]
[356701811,1742989867868,-500.0,0.00041369,30]
[356701812,1742989867878,-520.42250546,0.00041369,30]
[356701813,1742989867888,-512.00452655,0.00041369,30]
[356701814,1742989867898,-500.0,0.00041369,30]
[356701815,1742989867907,-525.3908949,0.00041369,30]
[356701816,1742989867916,-503.12864074,0.00041369,30]
[356701817,1742989867926,-548.9412412,0.00041369,30]
[356701818,1742989867935,-205.70994384,0.00041369,30]
[356701819,1742989867945,-531.36897337,0.00041369,30]
[356701820,1742989867954,-500.0,0.00041369,30]
[356701821,1742989867964,-500.0,0.00041369,30]
[356701822,1742989867975,-500.0,0.00041369,30]
[356701823,1742989867986,-232.35280364,0.00041369,30]
[356701824,1742989867996,-500.0,0.00041369,30]
[356701825,1742989868006,-500.0,0.00041369,30]
[356701826,1742989868016,-163.18010581,0.00041369,30]
[356701827,1742989868026,-500.0,0.00041369,30]
[356701828,1742989868035,-500.0,0.00041369,30]
[356701829,1742989868044,-623.40611656,0.00041369,30]
[356701830,1742989868054,-500.0,0.00041369,30]
[356701831,1742989868063,-500.0,0.00041369,30]
[356701832,1742989868073,-500.0,0.00041369,30]
[356701833,1742989868082,-500.0,0.00041369,30]
[356701834,1742989868094,-519.9338892,0.00041369,30]
[356701835,1742989868104,-500.0,0.00041369,30]
[356701836,1742989868113,-5732.33,0.00041369,30]
[356701837,1742989868123,-1709.94,0.00041369,30]
[356701838,1742989868132,-500.0,0.00041369,30]
[356701839,1742989868142,-500.0,0.00041369,30]
[356701840,1742989868152,-500.0,0.00041369,30]
[356701841,1742989868162,-566.35,0.00041369,30]
[356701842,1742989868172,-548.10337438,0.00041369,30]
[356701843,1742989868182,-902.11,0.00041369,30]
[356701844,1742989868191,-500.0,0.00041369,30]
[356701845,1742989868200,-500.0,0.00041369,30]
[356701846,1742989868211,-500.0,0.00041369,30]
[356701847,1742989868221,-525.07939025,0.00041369,30]
[356701848,1742989868232,-500.0,0.00041369,30]
[356701849,1742989868243,-500.0,0.00041369,30]
[356701850,1742989868252,-530.4119159,0.00041369,30]
[356701851,1742989868262,-500.0,0.00041369,30]
[356701852,1742989868272,-500.0,0.00041369,30]
[356701853,1742989868282,-1332.55,0.00041369,30]
[356701854,1742989868291,-500.0,0.00041369,30]
[356701855,1742989868301,-500.0,0.00041369,30]
[356701856,1742989868311,-500.0,0.00041369,30]
[356701857,1742989868328,-500.0,0.00041369,30]
[356701858,1742989868343,-534.44,0.00041369,30]
[356701859,1742989868363,-500.0,0.00041369,30]
[356701860,1742989868381,-500.0,0.00041369,30]
[356701861,1742989868395,-500.0,0.00041369,30]
[356701862,1742989868414,-500.0,0.00041369,30]
[356701863,1742989868432,-500.0,0.00041369,30]
[356701864,1742989868451,-500.0,0.00041369,30]
[356701865,1742989868470,-1162.51,0.00041369,30]
[356701866,1742989868487,-500.0,0.00041369,30]
[356701867,1742989868504,-500.0,0.00041369,30]
[356701868,1742989868518,-517.98668646,0.00041369,30]
[356701869,1742989868537,-500.0,0.00041369,30]
[356701870,1742989868550,-500.0,0.00041369,30]
[356701871,1742989868567,-558.28110432,0.00041369,30]
[356701872,1742989868581,-500.0,0.00041369,30]
[356701873,1742989868597,-569.50211706,0.00041369,30]
[356701874,1742989868612,-500.0,0.00041369,30]
[356701875,1742989868626,-500.0,0.00041369,30]
[356701876,1742989868641,-500.0,0.00041369,30]
[356701877,1742989868657,-500.0,0.00041369,30]
[356701878,1742989868671,-500.0,0.00041369,30]
[356701879,1742989868686,-500.0,0.00041369,30]
[356701880,1742989868702,-500.0,0.00041369,30]
[356701881,1742989868718,-5897.06,0.00041369,30]
[356701882,1742989868733,-500.0,0.00041369,30]
[356701883,1742989868748,-500.0,0.00041369,30]
[356701884,1742989868763,-212.33731509,0.00041369,30]
[356701885,1742989868778,-500.0,0.00041369,30]
[356701886,1742989868793,-500.0,0.00041369,30]
[356701887,1742989868808,-529.4949958,0.00041369,30]
[356701888,1742989868822,-500.0,0.00041369,30]
[356701889,1742989868837,-232.05861187,0.00041369,30]
[356701890,1742989868853,-500.0,0.00041369,30]
[356701891,1742989868868,-509.07341267,0.00041369,30]
[356701892,1742989868883,-500.0,0.00041369,30]
[356701893,1742989868897,-500.0,0.00041369,30]
[356701894,1742989868913,-500.0,0.00041369,30]
[356701895,1742989868928,-500.0,0.00041369,30]
[356701896,1742989868944,-432.45187169,0.00041369,30]
[356701897,1742989868959,-500.0,0.00041369,30]
[356701898,1742989868974,-500.0,0.00041369,30]
[356701899,1742989868989,-602.87856384,0.00041369,30]
[356701900,1742989869003,-614.37014575,0.00041369,30]
[356701901,1742989869019,-500.0,0.00041369,30]
[356701902,1742989869034,-500.0,0.00041369,30]
[356701903,1742989869049,-500.0,0.00041369,30]
[356701904,1742989869064,-598.34099388,0.00041369,30]
[356701905,1742989869078,-500.0,0.00041369,30]
[356701906,1742989869096,-530.8,0.00041369,30]
[356701907,1742989869111,-500.0,0.00041369,30]
[356701908,1742989869126,-500.0,0.00041369,30]
[356701909,1742989869142,-500.0,0.00041369,30]
[356701910,1742989869254,-500.0,0.00041369,30]
[356701911,1742989869264,-500.0,0.00041369,30]
[356701912,1742989869274,-500.0,0.00041369,30]
[356701913,1742989869283,-1267.25,0.00041369,30]
[356701914,1742989869292,-500.0,0.00041369,30]
[356701915,1742989869302,-500.0,0.00041369,30]
[356701916,1742989869311,-500.0,0.00041369,30]
[356701917,1742989869321,-500.0,0.00041369,30]
[356701918,1742989869330,-602.98093263,0.00041369,30]
[356701919,1742989869340,-500.0,0.00041369,30]
[356701920,1742989869349,-500.0,0.00041369,30]
[356701921,1742989869359,-500.0,0.00041369,30]
[356701922,1742989869369,-500.0,0.00041369,30]
[356701923,1742989869378,-500.0,0.00041369,30]
[356701924,1742989869388,-63028.24,0.00041369,30]
[356701925,1742989869397,-500.0,0.00041369,30]
[356701926,1742989869407,-500.0,0.00041369,30]
[356701927,1742989869416,-517.52,0.00041369,30]
[356701928,1742989869425,-162.58095847,0.00041369,30]
[356701929,1742989869434,-500.0,0.00041369,30]
[356701930,1742989869444,-500.0,0.00041369,30]
[356701931,1742989869453,-500.0,0.00041369,30]
[356701932,1742989869463,-500.0,0.00041369,30]
[356701933,1742989869473,-500.0,0.00041369,15]
[356701934,1742989869482,-500.0,0.00041369,30]
[356701935,1742989869492,-508.77040963,0.00041369,30]
[356701936,1742989869502,-500.0,0.00041369,30]
[356701937,1742989869512,-500.0,0.00041369,30]
[356701938,1742989869522,-500.0,0.00041369,30]
[356701939,1742989869532,-500.0,0.00041369,30]
[356701940,1742989869541,-500.0,0.00041369,30]
[356701941,1742989869550,-500.0,0.00041369,30]
[356701942,1742989869559,-500.0,0.00041369,30]
[356701943,1742989869568,-500.0,0.00041369,30]
[356701944,1742989869577,-500.0,0.00041369,30]
[356701945,1742989869586,-1957.89,0.00041369,30]
[356701946,1742989869596,-500.0,0.00041369,30]
[356701947,1742989869605,-500.0,0.00041369,30]
[356701948,1742989869615,-1297.96,0.00041369,30]
[356701949,1742989869624,-500.0,0.00041369,30]
[356701950,1742989869634,-500.0,0.00041369,30]
[356701951,1742989869643,-500.0,0.00041369,30]
[356701952,1742989869653,-500.0,0.00041369,30]
[356701953,1742989869662,-500.0,0.00041369,30]
[356701954,1742989869672,-500.0,0.00041369,30]
[356701955,1742989869682,-500.0,0.00041369,30]
[356701956,1742989869691,-500.0,0.00041369,30]
[356701957,1742989869700,-500.0,0.00041369,7]
[356701958,1742989869710,-348.62530839,0.00041369,30]
[356701959,1742989869720,-501.27748011,0.00041369,30]
[356701960,1742989869730,-500.0,0.00041369,30]
[356701961,1742989869739,-505.02112185,0.00041369,30]
[356701962,1742989869748,-479.7781374,0.00041369,30]
[356701963,1742989869758,-242.98917182,0.00041369,30]
[356701964,1742989869767,-500.0,0.00041369,30]
[356701965,1742989869777,-500.0,0.00041369,30]
[356701966,1742989869786,-500.0,0.00041369,30]
[356701967,1742989869795,-500.0,0.00041369,30]
[356701968,1742989869804,-500.0,0.00041369,30]
[356701969,1742989869814,-504.10445765,0.00041369,30]
[356701970,1742989869823,-500.0,0.00041369,30]
[356701971,1742989869833,-500.0,0.00041369,30]
[356701972,1742989869842,-500.0,0.00041369,30]
[356701973,1742989869852,-500.0,0.00041369,30]
[356701974,1742989869861,-519.88347966,0.00041369,30]
[356701975,1742989869870,-500.0,0.00041369,30]
[356701976,1742989869879,-535.16591228,0.00041369,30]
[356701977,1742989869889,-500.0,0.00041369,30]
[356701978,1742989869899,-500.0,0.00041369,30]
[356701979,1742989869908,-500.0,0.00041369,30]
[356701980,1742989869918,-500.0,0.00041369,30]
[356701981,1742989869927,-500.0,0.00041369,30]
[356701982,1742989869937,-500.0,0.00041369,30]
[356701983,1742989869947,-500.0,0.00041369,30]
[356701984,1742989869957,-500.0,0.00041369,30]
[356701985,1742989869968,-500.0,0.00041369,30]
[356701986,1742989869978,-500.0,0.00041369,30]
[356701987,1742989869987,-866.15,0.00041369,30]
[356701988,1742989869997,-500.0,0.00041369,30]
[356701989,1742989870006,-1500.0,0.00041369,30]
[356701990,1742989870016,-500.0,0.00041369,30]
[356701991,1742989870025,-500.0,0.00041369,30]
[356701992,1742989870034,-500.0,0.00041369,30]
[356701993,1742989870044,-517.79894403,0.00041369,30]
[356701994,1742989870053,-500.0,0.00041369,30]
[356701995,1742989870062,-500.0,0.00041369,30]
[356701996,1742989870072,-500.0,0.00041369,30]
[356701997,1742989870081,-293.69941223,0.00041369,30]
[356701998,1742989870092,-556.69963738,0.00041369,30]
[356701999,1742989870103,-534.60671335,0.00041369,30]
[356702000,1742989870112,-500.0,0.00041369,30]
[356702001,1742989870122,-537.31923423,0.00041369,30]
[356702002,1742989870131,-500.0,0.00041369,30]
[356702003,1742989870143,-1816.31,0.00041369,30]
[356702004,1742989870152,-507.61443898,0.00041369,30]
[356702005,1742989870162,-500.0,0.00041369,30]
[356702006,1742989870173,-637.03189781,0.00041369,30]
[356702007,1742989870183,-500.0,0.00041369,30]
[356702008,1742989870193,-556.99030699,0.00041369,30]
[356702009,1742989870203,-515.2104667,0.00041369,30]
[356702010,1742989870215,-500.0,0.00041369,30]
[356702011,1742989870224,-253.1983269,0.00041369,30]
[356702012,1742989870234,-500.0,0.00041369,30]
[356702013,1742989870244,-500.0,0.00041369,30]
[356702014,1742989870253,-500.0,0.00041369,30]
[356702015,1742989870263,-500.0,0.00041369,30]
[356702016,1742989870272,-159.27820144,0.00041369,30]
[356702017,1742989870281,-500.0,0.00041369,30]
[356702018,1742989870290,-778.66,0.00041369,30]
[356702019,1742989870300,-500.0,0.00041369,30]
[356702020,1742989870309,-563.94,0.00041369,30]
[356702021,1742989870318,-500.0,0.00041369,30]
[356702022,1742989870327,-500.0,0.00041369,30]
[356702023,1742989870336,-500.0,0.00041369,30]
[356702024,1742989870345,-512.44116959,0.00041369,30]
[356702025,1742989870354,-500.0,0.00041369,30]
[356702026,1742989870363,-500.0,0.00041369,30]
[356702027,1742989870373,-618.35387748,0.00041369,30]
[356702028,1742989870382,-500.00042911,0.00041369,30]
[356702029,1742989870391,-527.61130201,0.00041369,30]
[356702030,1742989870401,-518.58369403,0.00041369,30]
[356702031,1742989870410,-500.0,0.00041369,30]
[356702032,1742989870420,-500.0,0.00041369,30]
[356702033,1742989870430,-500.0,0.00041369,30]
[356702034,1742989870439,-500.0,0.00041369,30]
[356702035,1742989870522,-500.0,0.00041369,30]
[356702036,1742989870532,-500.0,0.00041369,30]
[356702037,1742989870542,-516.76465792,0.00041369,30]
[356702038,1742989870552,-500.0,0.00041369,30]
[356702039,1742989870561,-500.0,0.00041369,30]
[356702040,1742989870571,-500.0,0.00041369,30]
[356702041,1742989870580,-500.0,0.00041369,30]
[356702042,1742989870590,-500.0,0.00041369,30]
[356702043,1742989870599,-514.43290078,0.00041369,30]
[356702044,1742989870608,-3131.81,0.00041369,30]
[356702045,1742989870618,-500.0,0.00041369,30]
[356702046,1742989870627,-444.95751273,0.00041369,30]
[356702047,1742989870637,-500.0,0.00041369,30]
[356702048,1742989870646,-500.0,0.00041369,30]
[356702049,1742989870655,-500.0,0.00041369,30]
[356702050,1742989870664,-500.0,0.00041369,30]
[356702051,1742989870674,-500.0,0.00041369,30]
[356702052,1742989870683,-500.0,0.00041369,30]
[356702053,1742989870692,-500.0,0.00041369,30]
[356702054,1742989870701,-524.24921863,0.00041369,30]
[356702055,1742989870711,-528.32652632,0.00041369,30]
[356702056,1742989870720,-610.38738232,0.00041369,30]
[356702057,1742989870729,-519.55268017,0.00041369,30]
[356702058,1742989870739,-500.0,0.00041369,30]
[356702059,1742989870749,-512.69273467,0.00041369,30]
[356702060,1742989870758,-500.0,0.00041369,30]
[356702061,1742989870767,-500.0,0.00041369,30]
[356702062,1742989870776,-500.0,0.00041369,30]
[356702063,1742989870786,-500.0,0.00041369,30]
[356702064,1742989870795,-500.0,0.00041369,30]
[356702065,1742989870805,-500.0,0.00041369,30]
[356702066,1742989870814,-631.18636799,0.00041369,30]
[356702067,1742989870824,-500.0,0.00041369,30]
[356702068,1742989870833,-512.64478606,0.00041369,30]
[356702069,1742989870843,-500.0,0.00041369,30]
[356702070,1742989870852,-500.0,0.00041369,30]
[356702071,1742989870861,-515.7939078,0.00041369,30]
[356702072,1742989870871,-500.0,0.00041369,30]
[356702073,1742989870881,-515.25529253,0.00041369,30]
[356702074,1742989870891,-500.0,0.00041369,30]
[356702075,1742989870900,-503.57910494,0.00041369,30]
[356702076,1742989870910,-500.0,0.00041369,30]
[356702077,1742989870919,-500.0,0.00041369,30]
[356702078,1742989870929,-500.0,0.00041369,30]
[356702079,1742989870941,-500.0,0.00041369,30]
[356702080,1742989870950,-514.76685216,0.00041369,30]
[356702081,1742989870961,-651.46,0.00041369,7]
[356702082,1742989870971,-599.6520463,0.00041369,30]
[356702083,1742989870981,-515.77141182,0.00041369,30]
[356702084,1742989870990,-500.0,0.00041369,2]
[356702085,1742989871000,-500.0,0.00041369,30]
[356702086,1742989871010,-646.40608143,0.00041369,30]
[356702087,1742989871021,-500.0,0.00041369,30]
[356702088,1742989871031,-516.42042879,0.00041369,30]
[356702089,1742989871041,-500.0,0.00041369,2]
[356702090,1742989871051,-500.0,0.00041369,30]
[356702091,1742989871061,-500.0,0.00041369,30]
[356702092,1742989871070,-500.0,0.00041369,30]
[356702093,1742989871080,-628.75521487,0.00041369,30]
[356702094,1742989871094,-500.0,0.00041369,30]
[356702095,1742989871104,-500.0,0.00041369,30]
[356702096,1742989871113,-500.0,0.00041369,30]
[356702097,1742989871123,-500.0,0.00041369,30]
[356702098,1742989871134,-500.0,0.00041369,30]
[356702099,1742989871144,-527.24115557,0.00041369,30]
[356702100,1742989871153,-518.39470724,0.00041369,30]
[356702101,1742989871163,-158.35182839,0.00041369,30]
[356702102,1742989871174,-509.29566605,0.00041369,30]
[356702103,1742989871184,-500.0,0.00041369,30]
[356702104,1742989871193,-567.0,0.000414,6]
[356702105,1742989871203,-150.0,0.00041432,10]
[356702106,1742989871213,-150.0,0.00041514,10]
[356702107,1742989871222,-972.69,0.00041536,2]
[356702108,1742989871232,-161.78,0.00041552,2]
[356702109,1742989871241,-150.0,0.00041596,10]
[356702110,1742989871250,-517.04683924,0.000416,120]
[356702111,1742989871260,-786.66,0.00041642,30]
[356702112,1742989871270,-1007.03,0.00041642,30]
[356702113,1742989871279,-150.0,0.00041642,7]
[356702114,1742989871288,-488.388934,0.00041643,30]
[356702115,1742989871298,-348.343309,0.00041643,30]
[356702116,1742989871307,-502.18177958,0.00041643,2]
[356702117,1742989871316,-500.0,0.00041643,30]
[356702118,1742989871326,-500.0,0.00041643,30]
[356702119,1742989871335,-537.25033923,0.00041643,30]
[356702120,1742989871344,-2773.69,0.00041643,30]
[356702121,1742989871353,-394.09792915,0.00041643,30]
[356702122,1742989871363,-248.23956008,0.00041643,30]
[356702123,1742989871372,-500.0,0.00041643,30]
[356702124,1742989871382,-507.66019547,0.00041643,30]
[356702125,1742989871391,-553.55736747,0.00041643,30]
[356702126,1742989871400,-500.0,0.00041643,30]
[356702127,1742989871409,-500.0,0.00041643,2]
[356702128,1742989871419,-500.0,0.00041643,30]
[356702129,1742989871428,-154.40544542,0.00041643,30]
[356702130,1742989871437,-161.6,0.00041643,30]
[356702131,1742989871447,-500.0,0.00041643,30]
[356702132,1742989871456,-552.92,0.00041643,30]
[356702133,1742989871465,-500.0,0.00041643,30]
[356702134,1742989871475,-669.0,0.00041643,30]
[356702135,1742989871484,-500.0,0.00041643,30]
[356702136,1742989871494,-500.0,0.00041643,30]
[356702137,1742989871503,-779.48,0.00041643,30]
[356702138,1742989871513,-500.0,0.00041643,30]
[356702139,1742989871523,-500.0,0.00041643,30]
[356702140,1742989871532,-2314.65,0.00041643,30]
[356702141,1742989871542,-500.0,0.00041643,30]
[356702142,1742989871551,-500.0,0.00041643,30]
[356702143,1742989871561,-1144.12,0.00041643,30]
[356702144,1742989871571,-392.11582497,0.00041643,30]
[356702145,1742989871580,-500.0,0.00041643,30]
[356702146,1742989871589,-413.19814033,0.00041643,30]
[356702147,1742989871598,-512.9057874,0.00041643,30]
[356702148,1742989871607,-2000.0,0.00041643,2]
[356702149,1742989871617,-531.837732,0.00041643,30]